bitfinex-derivatives/quotes_ETHF0:USTF0_20241004
["timestamp","ask_amount","ask_price","bid_price","bid_amount"]
[1728036050738,5.87197087,2379.1,2379.0,0.42036]
[1728036051034,5.87197087,2379.1,2379.0,1.94036]
[1728036051035,5.47627087,2379.1,2379.0,1.94036]
[1728036052923,5.47627087,2379.1,2379.0,1.52]
[1728036053428,5.47627087,2379.1,2379.0,1.94036]
[1728036054330,5.47627087,2379.1,2379.0,1.52]
[1728036055730,5.47627087,2379.1,2379.0,1.94036]
[1728036055935,5.47627087,2379.1,2379.0,1.52]
[1728036056134,0.42033,2379.2,2379.0,1.94036]
[1728036056823,0.3942,2379.3,2379.0,1.94036]
[1728036057027,0.81452,2379.3,2379.0,1.94036]
[1728036057941,0.81452,2379.3,2379.1,0.429]
[1728036058538,0.3942,2379.3,2379.1,0.429]
[1728036058731,0.81452,2379.3,2379.1,0.429]
[1728036059243,0.42033,2379.2,2379.1,0.429]
[1728036059426,0.81452,2379.3,2379.1,0.429]
[1728036060932,0.42033,2379.2,2379.1,0.429]
[1728036061135,0.3942,2379.3,2379.0,1.52]
[1728036061331,0.81955,2379.1,2378.9,1.52]
[1728036061628,0.3882,2379.0,2378.8,1.205]
[1728036061831,0.8021,2379.0,2378.8,1.62539]
[1728036062032,1.22246,2379.0,2378.8,1.205]
[1728036062427,0.8021,2379.0,2378.8,1.6254]
[1728036063932,0.8021,2379.0,2378.8,1.205]
[1728036064334,0.8021,2379.0,2378.8,1.6254]
[1728036066536,0.8021,2379.0,2378.8,1.205]
[1728036066745,0.8021,2379.0,2378.8,1.6254]
[1728036067536,4.0099,2379.0,2378.8,1.6254]
[1728036067742,0.42041,2378.8,2378.6,0.098]
[1728036067939,3.6293,2378.7,2378.5,0.4154]
[1728036068239,3.6293,2378.7,2378.3,2.3533]
[1728036068240,0.42045,2378.5,2378.3,2.3533]
[1728036068439,0.42047,2378.4,2378.3,0.4135]
[1728036068637,3.62827,2378.4,2378.3,0.4135]
[1728036068835,3.62827,2378.4,2378.0,1.25382]
[1728036069038,0.4215,2378.3,2378.0,0.8333]
[1728036069238,0.4215,2378.3,2378.1,0.42051]
[1728036069436,0.4215,2378.3,2378.1,1.94051]
[1728036070839,0.4215,2378.3,2378.0,1.25383]
[1728036071142,0.4215,2378.3,2378.1,1.52]
[1728036071640,0.84198,2378.3,2378.1,1.52]
[1728036072146,0.4215,2378.3,2378.0,2.77383]
[1728036072444,0.84198,2378.3,2378.0,2.77383]
[1728036072940,0.84198,2378.3,2378.0,2.3533]
[1728036073141,0.84198,2378.3,2378.1,0.42052]
[1728036073846,3.72621,2378.8,2378.5,0.42044]
[1728036074146,3.72621,2378.8,2378.7,1.52]
[1728036074147,3.62821,2378.8,2378.7,1.52]
[1728036074343,0.42041,2378.7,2378.6,0.4114]
[1728036074743,0.42041,2378.7,2378.5,1.52]
[1728036075642,5.1476,2378.8,2378.3,2.35767]
[1728036075844,0.42043,2378.7,2378.3,2.35767]
[1728036076344,5.1476,2378.8,2378.3,1.9372]
[1728036076543,0.42047,2378.4,2378.2,0.4114]
[1728036076747,1.1997,2378.3,2378.2,0.4114]
[1728036078443,1.62018,2378.3,2378.2,0.4114]
[1728036079141,1.62018,2378.3,2378.1,1.9234]
[1728036079453,1.62018,2378.3,2378.1,1.52]
[1728036079951,1.1997,2378.3,2378.1,1.94051]
[1728036080145,0.8113,2378.3,2378.1,1.94051]
[1728036080447,3.3058,2378.9,2378.2,5.7248]
[1728036080647,3.3058,2378.9,2378.1,6.0]
[1728036080648,0.42041,2378.8,2378.7,1.52]
[1728036080859,0.42041,2378.8,2378.5,0.42044]
[1728036080860,4.7278,2378.9,2378.5,1.52]
[1728036081062,0.42046,2378.5,2378.3,0.098]
[1728036081252,0.8269,2378.4,2378.2,1.9405]
[1728036081775,0.8269,2378.4,2378.3,0.4273]
[1728036085872,0.42048,2378.3,2378.2,1.52]
[1728036087284,0.8269,2378.4,2378.2,1.52]
[1728036087476,0.42048,2378.3,2378.2,1.52]
[1728036087983,1.24738,2378.4,2378.2,1.52]
[1728036088280,0.42048,2378.3,2378.2,1.52]
[1728036088683,0.8269,2378.4,2378.2,1.52]
[1728036088875,1.24738,2378.4,2378.3,1.52]
[1728036089071,0.8269,2378.4,2378.2,1.52]
[1728036089383,0.42048,2378.3,2378.2,1.52]
[1728036089779,1.24738,2378.4,2378.2,1.52]
[1728036091178,0.42048,2378.3,2378.2,1.52]
[1728036092884,1.24738,2378.4,2378.2,1.52]
[1728036093082,0.42048,2378.3,2378.2,1.52]
[1728036094584,0.8269,2378.4,2378.2,1.52]
[1728036094791,1.24738,2378.4,2378.2,1.52]
[1728036094987,1.24738,2378.4,2378.3,0.3896]
[1728036096889,0.8269,2378.4,2378.3,0.3896]
[1728036097089,1.24737,2378.4,2378.3,0.3896]
[1728036100682,0.8269,2378.4,2378.3,0.3896]
[1728036100887,3.2078,2378.5,2378.3,1.9096]
[1728036101087,0.098,2378.8,2378.4,0.8041]
[1728036101088,0.4132,2378.8,2378.4,0.8041]
[1728036101290,4.03548,2378.9,2378.7,1.94041]
[1728036101488,4.03548,2378.9,2378.8,0.4205]
[1728036101689,3.6151,2378.9,2378.8,0.4205]
[1728036102095,3.6151,2378.9,2378.8,0.8409]
[1728036102290,3.2078,2378.9,2378.8,1.2496]
[1728036102492,3.2078,2379.3,2378.8,2.7446]
[1728036102797,3.62817,2379.0,2378.8,1.2246]
[1728036102997,0.8205,2378.9,2378.8,1.2246]
[1728036106694,1.24088,2378.9,2378.8,0.8292]
[1728036107392,0.8205,2378.9,2378.5,0.3956]
[1728036107701,0.42041,2378.8,2378.5,1.22325]
[1728036107891,0.42042,2378.7,2378.5,0.8028]
[1728036108201,0.8205,2378.9,2378.5,1.22324]
[1728036108408,0.42042,2378.7,2378.5,1.22324]
[1728036109399,0.42042,2378.7,2378.5,0.8028]
[1728036110701,0.42042,2378.7,2378.5,1.22325]
[1728036112899,0.42042,2378.7,2378.5,1.22325]
[1728036113101,0.8205,2378.9,2378.5,1.22325]
[1728036113304,0.8205,2378.9,2378.5,0.8028]
[1728036113305,0.42043,2378.7,2378.5,0.8028]
[1728036114194,1.87146,2378.9,2378.5,1.22325]
[1728036114399,0.42042,2378.7,2378.5,1.22325]
[1728036114699,0.42042,2378.7,2378.5,0.8028]
[1728036120401,3.2078,2378.9,2378.6,3.28]
[1728036120601,3.2078,2378.9,2378.5,5.0068]
[1728036120602,3.2078,2378.9,2378.8,3.7004]
[1728036120999,3.2078,2378.9,2378.8,7.9044]
[1728036121400,3.2078,2378.9,2378.8,13.9044]
[1728036123415,0.51832,2379.3,2378.8,13.484]
[1728036123706,4.0209,2379.4,2379.1,0.42034]
[1728036124214,3.2078,2379.4,2379.3,0.42031]
[1728036124400,3.2078,2379.7,2379.2,3.28]
[1728036124611,3.2078,2379.7,2379.5,3.28]
[1728036124801,3.2078,2379.7,2379.6,3.70025]
[1728036127212,0.7964,2379.8,2379.6,3.28]
[1728036127415,7.69779458,2380.1,2379.6,3.28]
[1728036127416,4.04527,2380.1,2379.8,0.42022]
[1728036127710,3.62797,2380.1,2380.0,3.28]
[1728036128210,3.2078,2380.1,2380.0,7.90178]
[1728036129410,3.2078,2380.1,2380.0,7.4816]
[1728036130006,3.2078,2380.1,2380.0,7.90178]
[1728036130206,3.2078,2380.1,2380.0,7.4816]
[1728036130607,3.2078,2380.1,2380.0,7.90178]
[1728036131304,3.2078,2380.1,2380.0,7.4816]
[1728036132013,3.2078,2380.1,2380.0,3.28]
[1728036132511,3.2078,2380.1,2380.0,7.90178]
[1728036132815,3.2078,2380.1,2380.0,7.4816]
[1728036133615,0.42015,2380.3,2380.0,7.4816]
[1728036133805,3.2078,2380.5,2380.0,3.28]
[1728036134008,3.2078,2380.5,2380.1,0.84066]
[1728036134009,3.62791,2380.5,2380.1,0.84066]
[1728036134209,3.62791,2380.5,2380.1,1.66076]
[1728036134614,3.62791,2380.5,2380.2,3.70014]
[1728036134819,3.2078,2380.5,2380.4,3.28]
[1728036135316,3.72583,2380.9,2380.4,7.4808]
[1728036135520,3.72583,2380.9,2380.7,3.28]
[1728036135521,3.62783,2380.9,2380.7,3.28]
[1728036135715,0.82814,2380.8,2380.7,3.28]
[1728036135922,0.4081,2380.8,2380.7,3.28]
[1728036138117,0.82814,2380.8,2380.7,3.28]
[1728036138317,0.4081,2380.8,2380.5,3.28]
[1728036138518,0.4081,2380.8,2380.3,3.378]
[1728036138721,0.42017,2380.1,2380.0,0.098]
[1728036138912,3.2078,2380.2,2379.7,3.2078]
[1728036139113,3.2078,2380.2,2379.5,4.22317]
[1728036139114,0.42021,2379.9,2379.5,4.22317]
[1728036139326,0.42021,2379.9,2379.5,4.12517]
[1728036139822,3.2078,2379.9,2379.5,3.7049]
[1728036140121,3.2078,2379.6,2379.3,0.098]
[1728036140318,0.4203,2379.4,2379.1,0.098]
[1728036140520,0.42031,2379.3,2379.0,3.28]
[1728036140722,0.8488,2379.4,2379.0,3.28]
[1728036141227,0.4285,2379.4,2379.0,3.28]
[1728036141424,0.42031,2379.3,2379.0,3.28]
[1728036141820,3.62811,2379.3,2379.0,3.28]
[1728036142722,3.2078,2379.3,2378.9,0.4249]
[1728036142924,3.62812,2379.3,2378.9,0.4249]
[1728036143124,3.62812,2379.3,2378.9,0.84527]
[1728036143313,3.62812,2379.3,2378.9,0.4249]
[1728036143626,3.62812,2379.3,2378.9,0.84528]
[1728036144026,3.62812,2379.3,2378.9,0.84527]
[1728036145431,3.62812,2379.3,2379.0,3.28]
[1728036146329,3.62812,2379.3,2379.0,3.70036]
[1728036146516,3.2078,2379.3,2379.0,3.70036]
[1728036147123,3.62811,2379.3,2379.0,3.70036]
[1728036147425,3.2078,2379.3,2379.1,3.28]
[1728036148023,3.2078,2379.3,2379.2,0.42033]
[1728036148220,0.098,2379.7,2379.6,0.42025]
[1728036148221,3.3058,2379.7,2379.6,0.42025]
[1728036148425,3.2078,2379.7,2379.6,3.28]
[1728036148723,0.81691,2379.9,2379.6,3.70025]
[1728036148924,0.81691,2379.9,2379.6,3.28]
[1728036149127,0.81691,2379.9,2379.6,3.70025]
[1728036149528,0.81691,2379.9,2379.6,3.28]
[1728036150235,0.3967,2379.9,2379.5,3.28]
[1728036150425,3.2078,2379.7,2379.3,3.28]
[1728036150826,1.05064,2379.6,2379.1,3.378]
[1728036151026,0.4203,2379.4,2379.1,3.28]
[1728036151328,1.05064,2379.6,2379.1,3.28]
[1728036151329,0.81178,2379.5,2379.1,3.70033]
[1728036153729,4.01958,2379.5,2379.1,3.70033]
[1728036154423,0.42029,2379.4,2379.1,3.70033]
[1728036154733,3.5993,2379.5,2379.1,3.28]
[1728036154930,4.01958,2379.5,2379.1,3.28]
[1728036155129,3.5993,2379.5,2379.1,3.28]
[1728036155434,3.5993,2379.5,2378.9,0.4083]
[1728036155435,3.2078,2379.5,2379.4,3.70029]
[1728036155931,4.04733,2379.8,2379.5,0.42026]
[1728036156131,4.04733,2379.8,2379.5,0.82896]
[1728036156330,3.6271,2379.8,2379.5,0.4087]
[1728036156726,4.04733,2379.8,2379.5,0.82897]
[1728036157827,3.6271,2379.8,2379.5,0.4087]
[1728036158034,3.6271,2379.8,2379.6,0.42024]
[1728036158534,4.04732,2379.8,2379.5,0.4087]
[1728036158733,4.04732,2379.8,2379.5,0.82896]
[1728036159330,3.6271,2379.8,2379.6,0.42025]
[1728036159635,3.6271,2379.8,2379.6,3.28]
[1728036159636,3.2078,2379.8,2379.6,3.28]
[1728036159834,3.2078,2379.8,2379.6,3.70024]
[1728036160039,3.2078,2379.8,2379.7,0.42024]
[1728036160230,3.2078,2379.8,2379.6,3.70025]
[1728036160743,3.2078,2379.8,2379.6,3.28]
[1728036161240,3.2078,2379.8,2379.6,3.70025]
[1728036161632,3.2078,2379.8,2379.6,0.42025]
[1728036161834,3.2078,2379.8,2379.5,0.4087]
[1728036162038,3.2078,2379.8,2379.6,0.42025]
[1728036162442,3.2078,2379.8,2379.5,0.4087]
[1728036162638,3.62803,2379.8,2379.5,0.82897]
[1728036163335,3.2078,2379.8,2379.6,0.42025]
[1728036163736,3.2078,2379.8,2379.5,0.4087]
[1728036164143,3.2078,2379.8,2379.6,0.42025]
[1728036166641,3.2078,2379.8,2379.5,0.4087]
[1728036166847,3.2078,2379.8,2379.7,0.42024]
[1728036167540,0.80739,2380.0,2379.8,0.42022]
[1728036167747,0.80739,2380.0,2379.8,0.8166]
[1728036167748,0.3872,2380.0,2379.8,0.8166]
[1728036168049,0.80738,2380.0,2379.8,0.4026]
[1728036168246,0.80738,2380.0,2379.7,3.70023]
[1728036168545,3.62802,2379.8,2379.6,0.42025]
[1728036168742,3.2078,2379.8,2379.6,0.42025]
[1728036168938,0.42021,2379.9,2379.7,0.42023]
[1728036169333,0.42021,2379.9,2379.5,3.6826]
[1728036169539,0.42021,2379.9,2379.6,0.42024]
[1728036169941,0.42021,2379.9,2379.6,0.42025]
[1728036170239,0.80739,2380.0,2379.7,0.42022]
[1728036170648,0.3872,2380.0,2379.7,0.42022]
[1728036170848,0.42021,2379.9,2379.7,0.42022]
[1728036171044,0.42021,2379.9,2379.5,3.6826]
[1728036171338,0.3872,2380.0,2379.5,3.6826]
[1728036171339,0.8074,2380.0,2379.5,3.6826]
[1728036171544,0.8074,2380.0,2379.7,0.42022]
[1728036172242,0.8074,2380.0,2379.8,0.4235]
[1728036173136,0.3872,2380.0,2379.9,3.7002]
[1728036173346,3.2078,2380.1,2380.0,0.42018]
[1728036173538,0.4257,2380.2,2380.0,0.42018]
[1728036174638,0.4257,2380.2,2379.9,3.6681]
[1728036174838,0.84585,2380.2,2380.0,0.42018]
[1728036175039,0.84585,2380.2,2379.9,4.0883]
[1728036177945,0.84585,2380.2,2380.0,0.42018]
[1728036178144,0.84585,2380.2,2380.1,3.28]
[1728036178441,1.14816,2380.7,2380.4,0.4201]
[1728036178442,0.098,2380.7,2380.4,0.4201]
[1728036178638,0.8021,2380.8,2380.6,3.28]
[1728036179245,0.8021,2380.8,2380.5,0.4229]
[1728036179645,0.8021,2380.8,2380.6,3.7007]
[1728036180446,0.8021,2380.8,2380.6,0.4207]
[1728036184255,0.8021,2380.8,2380.6,0.84078]
[1728036184456,0.8021,2380.8,2380.6,0.84077]
[1728036184753,0.8021,2380.8,2380.6,0.4207]
[1728036184956,0.8021,2380.8,2380.6,0.84077]
[1728036185857,0.8021,2380.8,2380.6,0.4207]
[1728036186055,0.8021,2380.8,2380.6,0.84077]
[1728036186261,0.8021,2380.8,2380.6,0.4207]
[1728036186454,0.8021,2380.8,2380.6,0.42008]
[1728036186655,0.8021,2380.8,2380.7,0.42006]
[1728036189658,0.8021,2380.8,2380.6,0.42008]
[1728036189963,1.22215,2380.8,2380.5,3.7029]
[1728036190258,0.8021,2380.8,2380.5,4.12299]
[1728036190457,0.8021,2380.8,2380.5,3.7029]
[1728036190661,0.8021,2380.8,2380.7,3.70006]
[1728036190861,0.4078,2380.8,2380.7,6.90786]
[1728036191159,3.6068,2381.0,2380.7,6.4878]
[1728036191160,3.2078,2381.0,2380.7,6.4878]
[1728036191354,3.2078,2381.0,2380.9,0.42003]
[1728036191862,7.4078,2381.0,2380.9,0.42003]
[1728036192057,7.4078,2381.0,2380.8,0.42003]
[1728036192264,3.2078,2381.0,2380.8,0.42003]
[1728036193267,3.2078,2381.0,2380.9,0.42003]
[1728036194662,3.2078,2381.0,2380.9,0.80913]
[1728036195362,3.2078,2381.0,2380.9,0.3891]
[1728036195560,3.2078,2381.0,2380.9,0.80913]
[1728036197864,3.2078,2381.0,2380.9,0.3891]
[1728036198075,3.62781,2381.0,2380.7,6.90785]
[1728036198368,0.42001,2381.0,2380.7,7.30655]
[1728036198669,0.42001,2381.0,2380.7,4.09875]
[1728036198969,0.799,2381.1,2380.7,6.8865]
[1728036199164,1.219,2381.1,2380.7,6.8865]
[1728036199363,0.799,2381.1,2380.8,0.42004]
[1728036199569,1.21899,2381.1,2380.8,0.42004]
[1728036201869,0.799,2381.1,2380.7,6.8865]
[1728036202174,0.799,2381.1,2380.9,0.42001]
[1728036205067,0.799,2381.1,2380.7,6.8865]
[1728036205576,0.799,2381.1,2380.9,0.42002]
[1728036205871,1.21899,2381.1,2380.8,0.42003]
[1728036206059,0.799,2381.1,2380.7,6.8865]
[1728036206262,0.799,2381.1,2380.9,0.42001]
[1728036206664,0.799,2381.1,2380.7,6.8865]
[1728036206969,0.799,2381.1,2381.0,0.42001]
[1728036208972,0.84796,2381.3,2381.2,0.41997]
[1728036208973,0.428,2381.3,2381.2,0.41997]
[1728036209168,0.4195,2381.4,2381.1,1.1933]
[1728036209667,3.2078,2381.7,2381.6,0.4199]
[1728036209870,3.6273,2381.7,2381.4,3.28]
[1728036210373,0.41991,2381.6,2381.2,3.28]
[1728036210673,0.41991,2381.6,2381.4,0.41993]
[1728036210871,0.41992,2381.5,2381.2,0.41997]
[1728036211069,0.41994,2381.4,2381.1,4.89328]
[1728036211271,0.3916,2381.3,2381.1,4.89328]
[1728036211469,0.3935,2381.4,2381.3,3.28]
[1728036211665,0.81344,2381.4,2381.3,3.28]
[1728036211873,0.3935,2381.4,2381.3,3.28]
[1728036212274,0.3935,2381.4,2381.3,3.69995]
[1728036212471,0.3935,2381.4,2381.3,3.28]
[1728036212868,0.3935,2381.4,2381.3,3.69995]
[1728036214367,0.81344,2381.4,2381.3,3.28]
[1728036215971,0.3935,2381.4,2381.3,3.69995]
[1728036216277,0.41994,2381.5,2381.3,3.69995]
[1728036217283,0.8092,2381.6,2381.3,3.28]
[1728036217481,1.22911,2381.6,2381.3,3.69994]
[1728036217781,1.22911,2381.6,2381.3,3.28]
[1728036217981,1.22911,2381.6,2381.4,0.41993]
[1728036218484,0.8092,2381.6,2381.5,0.4081]
[1728036219079,1.2291,2381.6,2381.5,0.4081]
[1728036219474,0.8092,2381.6,2381.5,0.4081]
[1728036219978,0.8092,2381.6,2381.5,0.82802]
[1728036220179,0.8092,2381.6,2381.5,0.4081]
[1728036220480,0.8092,2381.6,2381.5,0.82802]
[1728036221283,0.8092,2381.6,2381.5,0.4081]
[1728036222277,1.2291,2381.6,2381.5,0.4081]
[1728036225772,1.2291,2381.6,2381.3,3.28]
[1728036225773,0.41993,2381.5,2381.3,3.28]
[1728036225975,0.41995,2381.4,2381.2,0.84257]
[1728036226370,0.3885,2381.5,2381.2,0.84257]
[1728036226371,0.81175,2381.3,2381.2,0.4226]
[1728036226575,0.3918,2381.3,2381.2,0.4226]
[1728036226781,0.3918,2381.3,2381.2,0.84257]
[1728036229080,0.80842,2381.5,2381.2,0.4226]
[1728036229280,1.21472,2381.5,2381.3,0.41995]
[1728036229482,0.82622,2381.5,2381.3,0.41995]
[1728036229682,0.82622,2381.5,2381.4,1.51]
[1728036237991,0.4063,2381.5,2381.4,1.51]
[1728036238299,0.82622,2381.5,2381.4,1.51]
[1728036240692,0.41995,2381.3,2381.2,1.9326]
[1728036240994,0.41997,2381.2,2381.1,3.2078]
[1728036241191,0.7887,2381.2,2381.1,5.13779]
[1728036241391,0.41995,2381.4,2381.1,5.13779]
[1728036241591,1.1948,2381.5,2381.3,1.51]
[1728036241788,0.41994,2381.4,2381.3,1.51]
[1728036242598,0.41995,2381.3,2381.2,1.2258]
[1728036242892,0.41995,2381.3,2381.2,2.7358]
[1728036245495,7.69669445,2381.5,2381.1,3.2078]
[1728036245702,0.84517,2381.2,2381.1,3.6173]
[1728036246004,0.84517,2381.2,2378.6,7.94386711]
[1728036246005,0.42003,2380.9,2380.7,3.62786]
[1728036246192,0.4252,2380.8,2380.7,3.6173]
[1728036246491,0.4252,2380.8,2380.7,5.1273]
[1728036247204,0.4252,2380.8,2380.7,5.54736]
[1728036248397,0.4252,2380.8,2380.7,3.6173]
[1728036248599,0.4252,2380.8,2380.7,5.54736]
[1728036249303,0.4252,2380.8,2380.7,5.1273]
[1728036249697,0.4252,2380.8,2380.7,5.54736]
[1728036250500,0.4201,2380.5,2380.4,4.7178]
[1728036251903,1.22497,2380.7,2380.5,0.42009]
[1728036252093,1.22497,2380.7,2380.6,1.8966]
[1728036252604,5.42577,2380.7,2380.6,1.8966]
[1728036252995,1.22497,2380.7,2380.6,1.8966]
[1728036254202,0.82067,2380.7,2380.6,1.8966]
[1728036254495,5.02147,2380.7,2380.6,1.8966]
[1728036255089,0.82067,2380.7,2380.6,1.8966]
[1728036255504,5.02147,2380.7,2380.6,1.51]
[1728036255806,0.42009,2380.6,2380.4,5.54601]
[1728036255996,0.4201,2380.5,2380.4,3.6159]
[1728036256194,0.42011,2380.4,2380.3,20.13467]
[1728036256396,7.82871,2380.4,2380.3,20.13467]
[1728036256906,7.82871,2380.4,2380.3,21.64467]
[1728036256907,3.62791,2380.4,2380.3,21.64467]
[1728036258201,7.82871,2380.4,2380.3,20.13467]
[1728036258401,13.82871,2380.4,2380.3,20.13467]
[1728036259503,13.82871,2380.4,2380.3,19.25543]
[1728036259504,17.10871,2380.4,2380.3,19.25543]
[1728036259808,17.10871,2380.4,2380.3,15.93937]
[1728036260010,17.10871,2380.4,2380.3,14.611]
[1728036262699,18.29871,2380.4,2380.3,14.611]
[1728036263604,17.10871,2380.4,2380.3,14.611]
[1728036263801,15.01871,2380.4,2380.3,14.611]
[1728036265206,13.82871,2380.4,2380.3,14.611]
[1728036265405,15.01871,2380.4,2380.3,14.611]
[1728036267399,3.62791,2380.4,2380.3,14.611]
[1728036267802,7.82871,2380.4,2380.3,14.611]
[1728036269817,3.2078,2380.4,2380.3,14.611]
[1728036270202,3.2078,2380.4,2380.3,15.8164]
[1728036270506,5.1957,2380.7,2380.3,15.8164]
[1728036270703,0.42011,2380.5,2380.3,15.8164]
[1728036270909,5.05588,2380.7,2380.3,15.8164]
[1728036271212,0.42011,2380.4,2380.3,15.8164]
[1728036272312,0.4201,2380.5,2380.3,15.8164]
[1728036272607,0.42011,2380.4,2380.3,15.8164]
[1728036276414,1.05022,2380.6,2380.3,15.8164]
[1728036276618,0.42011,2380.4,2380.3,15.8164]
[1728036291413,0.42011,2380.4,2380.3,15.0008]
[1728036291414,1.93011,2380.4,2380.3,15.0008]
[1728036291614,7.32811,2380.4,2380.3,14.611]
[1728036292025,13.32811,2380.4,2380.3,14.611]
[1728036292921,7.32811,2380.4,2380.3,14.611]
[1728036293127,13.32811,2380.4,2380.3,14.611]
[1728036293824,7.32811,2380.4,2380.3,14.611]
[1728036294031,13.32811,2380.4,2380.3,14.611]
[1728036296224,9.12731,2380.4,2380.3,14.611]
[1728036296431,14.48711,2380.4,2380.3,14.611]
[1728036297831,14.55196264,2380.4,2380.3,14.611]
[1728036300034,14.48711,2380.4,2380.3,14.611]
[1728036300236,14.55195846,2380.4,2380.3,14.611]
[1728036300626,14.55195838,2380.4,2380.3,14.611]
[1728036302823,14.55196118,2380.4,2380.3,13.72038]
[1728036303032,14.55196118,2380.4,2380.3,12.87546]
[1728036303534,14.55196118,2380.4,2380.3,0.56896]
[1728036303741,14.55196118,2380.4,2380.3,5.09e-06]
[1728036304036,0.42018,2380.0,2379.9,0.098]
[1728036304234,0.42027,2379.5,2379.4,0.098]
[1728036304542,0.42029,2379.4,2379.3,0.4243]
[1728036304834,1.22799,2379.4,2379.3,0.4243]
[1728036305335,4.7178,2379.5,2379.3,0.4243]
[1728036305534,4.7178,2379.5,2379.4,0.8337]
[1728036305535,3.62807,2379.5,2379.4,0.8337]
[1728036307035,3.2078,2379.8,2379.4,4.1137]
[1728036307336,3.28,2380.0,2379.6,0.42024]
[1728036307337,0.4202,2380.0,2379.6,0.42024]
[1728036307534,5.46224,2380.1,2379.7,0.4133]
[1728036307739,5.46224,2380.1,2379.8,0.7899]
[1728036308044,0.4202,2379.9,2379.8,0.7899]
[1728036312637,0.4202,2380.0,2379.8,0.7899]
[1728036312937,0.4202,2379.9,2379.8,0.7899]
[1728036316143,4.2016,2379.9,2379.3,0.098]
[1728036316338,0.42027,2379.6,2379.4,1.2115]
[1728036316545,0.42027,2379.5,2379.4,1.2115]
[1728036319344,1.05063,2379.7,2379.4,1.2115]
[1728036319549,0.42027,2379.6,2379.4,1.2115]
[1728036319744,1.05063,2379.7,2379.4,1.2115]
[1728036319949,3.2078,2379.8,2379.4,1.2115]
[1728036320251,3.62803,2379.8,2379.5,0.42027]
[1728036320747,3.62803,2379.8,2379.4,4.91177]
[1728036321151,3.62803,2379.8,2379.5,0.42027]
[1728036321755,3.2078,2379.8,2379.4,4.4915]
[1728036322153,3.2078,2379.8,2379.7,0.42024]
[1728036323053,0.42018,2380.1,2379.8,0.42021]
[1728036323246,0.42018,2380.1,2379.9,0.4053]
[1728036323451,0.42018,2380.0,2379.9,0.4053]
[1728036327158,0.42013,2380.3,2379.9,10.6069]
[1728036327351,0.42013,2380.3,2379.9,0.4053]
[1728036327352,0.42018,2380.0,2379.9,0.4053]
[1728036327757,3.62798,2380.1,2379.9,0.4053]
[1728036328166,3.2078,2380.1,2379.9,0.4053]
[1728036328465,3.62797,2380.1,2379.9,0.4053]
[1728036328851,3.2078,2380.1,2379.9,0.4053]
[1728036329063,3.2078,2380.4,2380.0,4.2016]
[1728036329263,0.42012,2380.4,2380.0,0.42017]
[1728036329555,1.14823,2380.6,2380.1,0.42016]
[1728036329761,0.4201,2380.5,2380.2,0.7815]
[1728036329962,0.42013,2380.4,2380.3,0.3984]
[1728036330963,0.42013,2380.3,2380.2,0.7815]
[1728036331755,3.62792,2380.4,2380.2,0.7815]
[1728036333069,0.42013,2380.3,2380.2,0.7815]
[1728036334763,0.82383,2380.3,2380.2,0.7815]
[1728036334963,0.4037,2380.3,2380.2,0.7815]
[1728036335558,0.82383,2380.3,2380.2,0.7815]
[1728036346683,0.4037,2380.3,2380.2,0.7815]
[1728036346883,3.62793,2380.4,2380.2,0.7815]
[1728036347178,3.2078,2380.4,2380.2,0.7815]
[1728036347379,0.42011,2380.5,2380.2,0.7815]
[1728036347682,0.82068,2380.6,2380.4,1.51]
[1728036347880,0.42005,2380.8,2380.5,2.34859]
[1728036348176,6.60185,2381.0,2380.6,0.423]
[1728036348378,5.5518,2381.0,2380.7,1.51]
[1728036348586,5.97182,2381.0,2380.7,1.93006]
[1728036348879,4.0418,2381.0,2380.7,1.51]
[1728036349079,4.0418,2381.0,2380.8,1.93004]
[1728036349279,4.48846428,2381.1,2380.9,1.9153]
[1728036349477,4.48846428,2381.1,2381.0,0.4185]
[1728036349886,4.90845428,2381.1,2381.0,0.4185]
[1728036350589,4.48846428,2381.1,2381.0,0.4185]
[1728036352784,4.90845428,2381.1,2381.0,0.4185]
[1728036355279,0.42004,2380.9,2380.6,0.423]
[1728036355492,0.42004,2380.9,2380.7,0.4061]
[1728036355792,0.83814,2380.8,2380.7,0.4061]
[1728036355991,3.6259,2380.8,2380.4,4.148]
[1728036356295,0.4201,2380.5,2380.4,4.5541]
[1728036356484,0.4201,2380.5,2380.4,0.4061]
[1728036356485,3.6279,2380.5,2380.4,0.4061]
[1728036356791,3.6279,2380.5,2380.2,0.7993]
[1728036356992,0.4175,2380.4,2380.2,0.7993]
[1728036357195,0.42013,2380.3,2380.2,0.4052]
[1728036357392,0.4175,2380.4,2380.0,3.2078]
[1728036357588,0.418,2380.2,2380.0,3.2078]
[1728036357785,0.83815,2380.2,2380.0,3.2078]
[1728036358488,0.418,2380.2,2380.0,3.2078]
[1728036358695,0.42017,2380.1,2380.0,3.2078]
[1728036359088,0.83816,2380.2,2380.0,3.2078]
[1728036359285,0.418,2380.2,2380.0,3.2078]
[1728036359588,0.42014,2380.3,2380.1,4.2016]
[1728036359791,0.4175,2380.4,2380.1,0.4068]